lending/lending_fUSD_20250424
["ID","MTS","AMOUNT","RATE_DAILY","PERIOD"]
[358880202,1745515841270,-207.4,0.00030009,2]
[358880203,1745515841279,-151.0,0.00030009,2]
[358880204,1745515841289,-151.0,0.00030071,2]
[358880205,1745515841299,-151.0,0.00030071,2]
[358880206,1745515841308,-485.0,0.00030079,5]
[358880207,1745515841319,-982.4922,0.00030109,2]
[358880208,1745515841328,-12039.16,0.0003011,2]
[358880209,1745515841338,-151.0,0.00030126,7]
[358880210,1745515841349,-151.0,0.00030126,7]
[358880211,1745515841363,-151.0,0.00030126,7]
[358880212,1745515841372,-610.0,0.00030137,2]
[358880213,1745515841382,-160.03244357,0.00030156,2]
[358880214,1745515841391,-325.65778398,0.00030173,5]
[358880215,1745515841400,-200.0,0.000302,2]
[358880216,1745515841410,-13372.3282671,0.00030205,2]
[358880217,1745515841419,-500.0,0.00030224,2]
[358880218,1745515841430,-500.0,0.00030234,2]
[358880219,1745515841444,-500.0,0.00030234,2]
[358880220,1745515841454,-666.0,0.00030234,10]
[358880221,1745515841465,-500.0,0.00030234,2]
[358880222,1745515841474,-500.0,0.00030234,2]
[358880223,1745515841484,-500.0,0.00030234,2]
[358880224,1745515841493,-500.0,0.00030234,2]
[358880225,1745515841503,-500.0,0.00030234,2]
[358880226,1745515841512,-500.0,0.00030234,2]
[358880227,1745515841522,-500.0,0.00030234,2]
[358880228,1745515841532,-214.128876,0.00030235,7]
[358880229,1745515841541,-151.0,0.00030235,7]
[358880230,1745515841552,-151.0,0.00030235,7]
[358880231,1745515841562,-204.0,0.00030548,2]
[358880232,1745515841572,-151.0,0.00030557,2]
[358880233,1745515841582,-151.0,0.00030619,2]
[358880234,1745515841591,-151.0,0.00030619,2]
[358880235,1745515841601,-500.0,0.00031,5]
[358880236,1745515841611,-530.17287326,0.00031,5]
[358880237,1745515841620,-502.55884876,0.00031,5]
[358880238,1745515841629,-300.82397261,0.00031,5]
[358880239,1745515841639,-600.0,0.00031,2]
[358880240,1745515841649,-1285.0,0.00031079,2]
[358880241,1745515841658,-796.0,0.00031079,2]
[358880242,1745515841668,-1015.166,0.00031079,2]
[358880243,1745515841679,-578.0,0.00031079,2]
[358880244,1745515841689,-1445.0,0.00031079,2]
[358880245,1745515841700,-2060.0,0.00031079,2]
[358880246,1745515841709,-548.0,0.00031079,2]
[358880247,1745515841719,-1133.0,0.00031079,2]
[358880248,1745515841728,-5790.0,0.00031079,2]
[358880249,1745515841737,-153.919,0.00031079,2]
[358880250,1745515841747,-198.901,0.00031079,2]
[358880251,1745515841756,-3986.0,0.00031079,2]
[358880252,1745515841766,-257.099,0.00031079,2]
[358880253,1745515841775,-981.055,0.00031079,2]
[358880254,1745515841784,-151.0,0.00031105,2]
[358880255,1745515841793,-500.0,0.00031129,5]
[358880256,1745515841805,-344.82834325,0.00031129,5]
[358880257,1745515841815,-500.0,0.00031129,5]
[358880258,1745515841824,-499.79138344,0.00031129,5]
[358880259,1745515841834,-500.76508829,0.00031129,5]
[358880260,1745515841843,-518.07384473,0.00031129,5]
[358880261,1745515841853,-502.08038095,0.00031129,5]
[358880262,1745515841862,-500.0,0.00031129,5]
[358880263,1745515841871,-504.846715,0.00031129,5]
[358880264,1745515841881,-502.71609771,0.00031129,5]
[358880265,1745515841890,-151.0,0.00031167,2]
[358880266,1745515841900,-151.0,0.00031167,2]
[358880267,1745515841909,-500.0,0.0003136,5]
[358880268,1745515841919,-215.0738,0.00031378,2]
[358880269,1745515841928,-18908.12348212,0.0003143,4]
[358880270,1745515841938,-691.84,0.00031503,2]
[358880271,1745515841947,-174.16,0.00031505,2]
[358880272,1745515841956,-151.0,0.00031653,2]
[358880273,1745515841965,-151.0,0.00031715,2]
[358880274,1745515841975,-294.22750257,0.00031715,2]
[358880275,1745515841985,-180.09498731,0.00031926,8]
[358880276,1745515841995,-3201.008738,0.00032,5]
[358880277,1745515842004,-339.10643685,0.00032,7]
[358880278,1745515842013,-1532.23628342,0.00032,2]
[358880279,1745515842023,-1178.13405514,0.00032,2]
[358880280,1745515842032,-163.64,0.00032052,2]
[358880281,1745515842041,-1000.0,0.00032159,2]
[358880282,1745515842056,-151.0,0.00032201,2]
[358880283,1745515842065,-194.3783369,0.00032263,2]
[358880284,1745515842075,-223.0315306,0.00032747,2]
[358880285,1745515842084,-151.0,0.00032749,2]
[358880286,1745515842093,-4654.13123799,0.000328,2]
[358880287,1745515842104,-150.0,0.00032877,2]
[358880288,1745515842113,-150.05,0.00032877,30]
[358880289,1745515842123,-5000.0,0.00032877,7]
[358880290,1745515842134,-5000.0,0.00032877,2]
[358880291,1745515842143,-500.0,0.00032989,10]
[358880292,1745515842154,-500.0,0.00032989,10]
[358880293,1745515842164,-500.0,0.00032989,10]
[358880294,1745515842174,-500.0,0.00032989,10]
[358880295,1745515842183,-500.0,0.00032989,10]
[358880296,1745515842193,-500.0,0.00032989,10]
[358880297,1745515842202,-500.0,0.00032989,10]
[358880298,1745515842212,-500.0,0.00032989,10]
[358880299,1745515842222,-500.0,0.00032999,10]
[358880300,1745515842232,-500.0,0.00032999,10]
[358880301,1745515842250,-500.0,0.00032999,10]
[358880302,1745515842262,-500.0,0.00032999,10]
[358880303,1745515842275,-500.0,0.00032999,10]
[358880304,1745515842285,-500.0,0.00032999,10]
[358880305,1745515842294,-500.0,0.00032999,10]
[358880306,1745515842306,-500.0,0.00032999,10]
[358880307,1745515842316,-500.0,0.00032999,10]
[358880308,1745515842326,-666.0,0.00032999,10]
[358880309,1745515842336,-4557.8989048,0.00033,2]
[358880310,1745515842346,-25129.23675559,0.00033,2]
[358880311,1745515842356,-151.0,0.00033,7]
[358880312,1745515842366,-650.0,0.00033,2]
[358880313,1745515842375,-216.62020948,0.000331,2]
[358880314,1745515842385,-1698.76,0.000331,7]
[358880315,1745515842395,-200.0,0.00033151,2]
[358880316,1745515842404,-151.0,0.00033297,2]
[358880317,1745515842414,-1169.23130226,0.000335,2]
[358880318,1745515842424,-150.0,0.00033742,2]
[358880319,1745515842434,-691.84,0.00033767,2]
[358880320,1745515842444,-3940.72401783,0.000339,2]
[358880321,1745515842454,-453.40082987,0.000339,2]
[358880322,1745515842464,-199.43225266,0.00034,3]
[358880323,1745515842474,-4003.99095216,0.00034,2]
[358880324,1745515842483,-1178.12,0.00034,2]
[358880325,1745515842493,-1285.0,0.00034079,2]
[358880326,1745515842503,-796.0,0.00034079,2]
[358880327,1745515842512,-910.0,0.00034079,2]
[358880328,1745515842523,-578.0,0.00034079,2]
[358880329,1745515842533,-1445.0,0.00034079,2]
[358880330,1745515842543,-2060.0,0.00034079,2]
[358880331,1745515842554,-548.0,0.00034079,2]
[358880332,1745515842564,-1133.0,0.00034079,2]
[358880333,1745515842574,-5790.0,0.00034079,2]
[358880334,1745515842584,-152.0,0.00034079,2]
[358880335,1745515842594,-3986.0,0.00034079,2]
[358880336,1745515842603,-152.0,0.00034079,2]
[358880337,1745515842614,-918.0,0.00034079,2]
[358880338,1745515842625,-5563.0,0.000341,5]
[358880339,1745515842635,-231.28369723,0.00034116,2]
[358880340,1745515842645,-151.0,0.00034178,7]
[358880341,1745515842654,-150.0,0.00034384,5]
[358880342,1745515842664,-151.0,0.00034388,7]
[358880343,1745515842957,-151.0,0.00034388,7]
[358880344,1745515842967,-150.0,0.00034548,10]
[358880345,1745515842977,-150.0,0.00034607,2]
[358880346,1745515842987,-500.0,0.00034754,10]
[358880347,1745515842997,-500.0,0.00034754,10]
[358880348,1745515843007,-500.0,0.00034754,10]
[358880349,1745515843017,-500.0,0.00034754,10]
[358880350,1745515843026,-500.0,0.00034754,10]
[358880351,1745515843036,-500.0,0.00034754,10]
[358880352,1745515843046,-500.0,0.00034754,10]
[358880353,1745515843055,-151.0,0.00034755,7]
[358880354,1745515843065,-151.0,0.00034755,7]
[358880355,1745515843074,-151.0,0.00034755,7]
[358880356,1745515843084,-151.0,0.00034755,7]
[358880357,1745515843094,-839.181028,0.00034755,2]
[358880358,1745515843104,-151.0,0.00034755,7]
[358880359,1745515843113,-839.181028,0.00034755,2]
[358880360,1745515843122,-151.0,0.00034755,7]
[358880361,1745515843131,-151.0,0.00034755,7]
[358880363,1745515843141,-241.688575,0.00034755,7]
[358880365,1745515843151,-151.0,0.00034755,7]
[358880367,1745515843160,-151.0,0.00034755,7]
[358880370,1745515843170,-273.674149,0.00034755,7]
[358880372,1745515843179,-273.674149,0.00034755,7]
[358880375,1745515843191,-693.520204,0.00034755,7]
[358880376,1745515843200,-693.520204,0.00034755,7]
[358880377,1745515843210,-500.0,0.00034764,10]
[358880378,1745515843219,-500.0,0.00034764,10]
[358880379,1745515843228,-500.0,0.00034764,10]
[358880380,1745515843237,-500.0,0.00034764,10]
[358880381,1745515843246,-500.0,0.00034764,10]
[358880382,1745515843256,-500.0,0.00034764,10]
[358880383,1745515843268,-500.0,0.00034764,10]
[358880384,1745515843278,-500.0,0.00034764,10]
[358880385,1745515843288,-500.0,0.00034764,10]
[358880386,1745515843298,-82692.59602713,0.00034765,2]
[358880387,1745515843311,-5000.0,0.000348,5]
[358880388,1745515843320,-26088.43042207,0.0003489,14]
[358880389,1745515843329,-501.86,0.000349,3]
[358880390,1745515843338,-2000.0,0.00034967,4]
[358880391,1745515843349,-150.0,0.00034973,5]
[358880392,1745515843360,-154.0,0.00034973,5]
[358880393,1745515843370,-150.23279255,0.00034973,5]
[358880394,1745515843379,-151.0,0.00034979,7]
[358880395,1745515843389,-155.915698,0.00034979,7]
[358880396,1745515843398,-151.0,0.00034979,7]
[358880397,1745515843408,-151.0,0.00034979,7]
[358880398,1745515843418,-151.0,0.00034979,7]
[358880399,1745515843427,-151.0,0.00034979,7]
[358880400,1745515843438,-151.0,0.00034979,7]
[358880401,1745515843447,-151.0,0.00034979,7]
[358880402,1745515843457,-152.544242,0.00034979,7]
[358880403,1745515843467,-355.733392,0.00034979,7]
[358880404,1745515843477,-355.733392,0.00034979,7]
[358880405,1745515843486,-151.0,0.00034979,7]
[358880406,1745515843496,-500.0,0.00034989,10]
[358880407,1745515843505,-500.0,0.00034989,10]
[358880408,1745515843514,-500.0,0.00034989,10]
[358880409,1745515843524,-500.0,0.00034989,10]
[358880410,1745515843533,-500.0,0.00034989,10]
[358880411,1745515843543,-500.0,0.00034989,10]
[358880412,1745515843553,-500.0,0.00034989,10]
[358880413,1745515843562,-151.0,0.0003499,7]
[358880415,1745515843572,-390.917466,0.0003499,7]
[358880416,1745515843581,-390.917466,0.0003499,7]
[358880417,1745515843591,-151.0,0.0003499,7]
[358880418,1745515843601,-151.0,0.0003499,7]
[358880419,1745515843610,-151.962676,0.0003499,7]
[358880420,1745515843620,-151.0,0.0003499,7]
[358880422,1745515843630,-839.181028,0.0003499,2]
[358880424,1745515843639,-1024.156362,0.0003499,7]
[358880426,1745515843648,-301.07813,0.0003499,7]
[358880427,1745515843659,-839.181028,0.0003499,2]
[358880428,1745515843669,-1024.156362,0.0003499,7]
[358880429,1745515843679,-151.0,0.0003499,7]
[358880430,1745515843689,-151.0,0.0003499,7]
[358880431,1745515843699,-151.0,0.0003499,7]
[358880432,1745515843708,-411.909564,0.0003499,7]
[358880433,1745515843717,-411.909564,0.0003499,7]
[358880434,1745515843727,-151.0,0.0003499,7]
[358880435,1745515843737,-151.0,0.0003499,7]
[358880436,1745515843747,-151.0,0.0003499,7]
[358880437,1745515843756,-273.674149,0.0003499,7]
[358880438,1745515843767,-273.674149,0.0003499,7]
[358880439,1745515843776,-693.520204,0.0003499,7]
[358880440,1745515843787,-693.520204,0.0003499,7]
[358880441,1745515843798,-500.0,0.00034999,10]
[358880442,1745515843809,-500.0,0.00034999,10]
[358880443,1745515843819,-500.0,0.00034999,10]
[358880444,1745515843828,-500.0,0.00034999,10]
[358880445,1745515843837,-500.0,0.00034999,10]
[358880446,1745515843847,-500.0,0.00034999,10]
[358880447,1745515843856,-500.0,0.00034999,10]
[358880448,1745515843866,-500.0,0.00034999,10]
[358880449,1745515843875,-150.0,0.00034999,2]
[358880450,1745515843885,-153.92,0.00035,30]
[358880451,1745515843895,-6500.0,0.00035,3]
[358880452,1745515843904,-370.36573614,0.00035,30]
[358880453,1745515843914,-226.76186796,0.00035,30]
[358880454,1745515843923,-1137.25728401,0.00035,30]
[358880455,1745515843933,-400000.0,0.00035,4]
[358880456,1745515843943,-3900.0,0.00035,7]
[358880457,1745515843953,-1196.13370253,0.00035,2]
[358880458,1745515843963,-227.72919541,0.00035,2]
[358880459,1745515843972,-151.0,0.00035,7]
[358880460,1745515843983,-151.0,0.00035,7]
[358880461,1745515843993,-151.0,0.00035,7]
[358880462,1745515844002,-151.0,0.00035,7]
[358880463,1745515844012,-151.0,0.00035,7]
[358880464,1745515844022,-151.0,0.00035,7]
[358880465,1745515844032,-150.0,0.00035,2]
[358880466,1745515844041,-151.0,0.00035,7]
[358880467,1745515844050,-151.0,0.00035,7]
[358880468,1745515844060,-151.0,0.00035,7]
[358880469,1745515844070,-275.927413,0.00035,7]
[358880470,1745515844080,-903.557397,0.00035,7]
[358880471,1745515844090,-151.0,0.00035,7]
[358880472,1745515844100,-161.837595,0.00035,7]
[358880473,1745515844110,-151.0,0.00035,7]
[358880474,1745515844119,-151.0,0.00035,7]
[358880475,1745515844129,-151.0,0.00035,7]
[358880476,1745515844138,-151.0,0.00035,7]
[358880477,1745515844147,-151.0,0.00035,7]
[358880478,1745515844157,-151.0,0.00035,7]
[358880479,1745515844167,-291.723992,0.00035,7]
[358880480,1745515844177,-151.0,0.00035,7]
[358880481,1745515844187,-151.0,0.00035,7]
[358880482,1745515844197,-151.0,0.00035,7]
[358880483,1745515844206,-151.0,0.00035,7]
[358880484,1745515844217,-151.0,0.00035,7]
[358880485,1745515844226,-251.442534,0.00035,7]
[358880486,1745515844235,-251.442534,0.00035,7]
[358880487,1745515844245,-251.442534,0.00035,7]
[358880488,1745515844255,-251.442534,0.00035,7]
[358880489,1745515844269,-151.0,0.00035,7]
[358880490,1745515844279,-151.0,0.00035,7]
[358880491,1745515844290,-154.100858,0.00035,7]
[358880492,1745515844299,-633.837299,0.00035,7]
[358880493,1745515844309,-633.837299,0.00035,7]
[358880494,1745515844319,-633.837299,0.00035,7]
[358880495,1745515844329,-633.837299,0.00035,7]
[358880496,1745515844341,-151.0,0.00035,7]
[358880497,1745515844350,-151.0,0.00035,7]
[358880498,1745515844360,-151.0,0.00035,7]
[358880499,1745515844369,-151.0,0.00035,7]
[358880500,1745515844378,-151.0,0.00035,7]
[358880501,1745515844387,-151.0,0.00035,7]
[358880502,1745515844396,-151.0,0.00035,7]
[358880503,1745515844406,-151.0,0.00035,7]
[358880504,1745515844416,-164.992479,0.00035,7]
[358880505,1745515844426,-164.992479,0.00035,7]
[358880506,1745515844435,-164.992479,0.00035,7]
[358880507,1745515844445,-164.992479,0.00035,7]
[358880508,1745515844454,-151.0,0.00035,7]
[358880509,1745515844464,-261.074273,0.00035,7]
[358880510,1745515844474,-261.074273,0.00035,7]
[358880511,1745515844484,-261.074273,0.00035,7]
[358880512,1745515844494,-261.074273,0.00035,7]
[358880513,1745515844503,-194.637015,0.00035,7]
[358880514,1745515844513,-194.637015,0.00035,7]
[358880515,1745515844523,-194.637015,0.00035,7]
[358880516,1745515844532,-194.637015,0.00035,7]
[358880517,1745515844542,-151.0,0.00035,7]
[358880518,1745515844551,-151.0,0.00035,7]
[358880519,1745515844560,-151.0,0.00035,7]
[358880520,1745515844570,-194.747237,0.00035,7]
[358880521,1745515844580,-194.747237,0.00035,7]
[358880522,1745515844590,-151.0,0.00035,7]
[358880523,1745515844599,-511.316107,0.00035,7]
[358880524,1745515844609,-511.316107,0.00035,7]
[358880525,1745515844619,-511.316107,0.00035,7]
[358880526,1745515844629,-511.316107,0.00035,7]
[358880527,1745515844638,-151.0,0.00035,7]
[358880528,1745515844648,-283.091552,0.00035,7]
[358880529,1745515844658,-283.091552,0.00035,7]
[358880530,1745515844667,-283.091552,0.00035,7]
[358880531,1745515844677,-283.091552,0.00035,7]
[358880532,1745515844687,-165.647251,0.00035,7]
[358880533,1745515844696,-151.0,0.00035,7]
[358880534,1745515844705,-280.109296,0.00035,7]
[358880535,1745515844714,-151.0,0.00035,7]
[358880536,1745515844723,-151.0,0.00035,7]
[358880537,1745515844733,-280.109296,0.00035,7]
[358880538,1745515844743,-151.0,0.00035,7]
[358880539,1745515844752,-151.0,0.00035,7]
[358880540,1745515844761,-703.516116,0.00035,7]
[358880541,1745515844770,-355.733392,0.00035,7]
[358880542,1745515844780,-703.516116,0.00035,7]
[358880543,1745515844790,-355.733392,0.00035,7]
[358880544,1745515844800,-568.154562,0.00035,7]
[358880545,1745515844810,-151.0,0.00035,7]
[358880546,1745515844820,-568.154562,0.00035,7]
[358880547,1745515844830,-246.67314,0.00035,7]
[358880548,1745515844841,-151.0,0.00035,7]
[358880549,1745515844851,-246.67314,0.00035,7]
[358880550,1745515844860,-365.910296,0.00035,7]
[358880551,1745515844871,-151.0,0.00035,7]
[358880552,1745515844881,-151.0,0.00035,7]
[358880553,1745515844890,-151.0,0.00035,7]
[358880554,1745515844899,-151.0,0.00035,7]
[358880555,1745515844909,-151.0,0.00035,7]
[358880556,1745515844918,-151.0,0.00035,7]
[358880557,1745515844927,-490.428211,0.00035,7]
[358880558,1745515844936,-490.428211,0.00035,7]
[358880559,1745515844945,-151.0,0.00035,7]
[358880560,1745515844954,-151.0,0.00035,7]
[358880561,1745515844963,-1314.959756,0.00035,7]
[358880562,1745515845180,-1367.175824,0.00035,7]
[358880563,1745515845191,-151.0,0.00035,7]
[358880564,1745515845201,-1314.959756,0.00035,7]
[358880565,1745515845210,-156.297608,0.00035,7]
[358880566,1745515845221,-156.297608,0.00035,7]
[358880567,1745515845231,-151.0,0.00035,7]
[358880568,1745515845240,-390.917466,0.00035,7]
[358880569,1745515845251,-390.917466,0.00035,7]
[358880570,1745515845261,-151.0,0.00035,7]
[358880571,1745515845275,-186.333407,0.00035,7]
[358880572,1745515845285,-165.815131,0.00035,7]
[358880573,1745515845294,-151.0,0.00035,7]
[358880574,1745515845303,-839.181028,0.00035,2]
[358880575,1745515845314,-1024.156362,0.00035,7]
[358880576,1745515845324,-839.181028,0.00035,2]
[358880577,1745515845333,-1024.156362,0.00035,7]
[358880578,1745515845345,-151.0,0.00035,7]
[358880579,1745515845355,-151.0,0.00035,7]
[358880580,1745515845364,-151.0,0.00035,7]
[358880581,1745515845374,-411.909564,0.00035,7]
[358880582,1745515845384,-444.169321,0.00035,7]
[358880583,1745515845393,-411.909564,0.00035,7]
[358880584,1745515845404,-444.169321,0.00035,7]
[358880585,1745515845415,-151.0,0.00035,7]
[358880586,1745515845424,-151.0,0.00035,7]
[358880587,1745515845434,-700.0,0.00035,2]
[358880588,1745515845444,-151.0,0.00035,7]
[358880589,1745515845454,-273.674149,0.00035,7]
[358880590,1745515845463,-273.674149,0.00035,7]
[358880591,1745515845473,-693.520204,0.00035,7]
[358880592,1745515845482,-693.520204,0.00035,7]
[358880593,1745515845492,-19075.38615599,0.0003511,30]
[358880594,1745515845503,-501.86,0.000354,3]
[358880595,1745515845513,-150.0,0.00035472,2]
[358880596,1745515845522,-163.64,0.00035477,2]
[358880597,1745515845531,-239.84119403,0.00035485,2]
[358880598,1745515845542,-150.0,0.00035616,30]
[358880599,1745515845551,-1000.0,0.00035732,2]
[358880600,1745515845561,-151.0,0.00035899,7]
[358880601,1745515845571,-151.0,0.00035899,7]
[358880602,1745515845583,-903.557397,0.00035899,7]
[358880603,1745515845592,-151.0,0.00035899,7]
[358880604,1745515845602,-151.0,0.00035899,7]
[358880605,1745515845612,-151.0,0.00035899,7]
[358880606,1745515845621,-151.0,0.00035899,7]
[358880607,1745515845631,-251.442534,0.00035899,7]
[358880608,1745515845640,-251.442534,0.00035899,7]
[358880609,1745515845650,-151.0,0.0003591,7]
[358880610,1745515845659,-151.0,0.0003591,7]
[358880611,1745515845669,-151.0,0.0003591,7]
[358880612,1745515845678,-151.0,0.0003591,7]
[358880613,1745515845687,-151.0,0.0003591,7]
[358880614,1745515845698,-151.0,0.0003591,7]
[358880615,1745515845708,-903.557397,0.0003591,7]
[358880616,1745515845718,-500.0,0.00035919,10]
[358880617,1745515845727,-500.0,0.00035919,10]
[358880618,1745515845737,-500.0,0.00035919,10]
[358880619,1745515845746,-500.0,0.00035919,10]
[358880620,1745515845755,-500.0,0.00035919,10]
[358880621,1745515845765,-500.0,0.00035919,10]
[358880622,1745515845775,-159.57716,0.0003592,7]
[358880623,1745515845784,-151.0,0.0003592,7]
[358880624,1745515845793,-151.0,0.0003592,7]
[358880625,1745515845805,-500.0,0.00035929,10]
[358880626,1745515845815,-500.0,0.00035929,10]
[358880627,1745515845824,-219959.22454235,0.0003593,7]
[358880628,1745515845834,-300.3824,0.0003593,7]
[358880629,1745515845843,-151.0,0.0003593,7]
[358880630,1745515845853,-151.0,0.0003593,7]
[358880631,1745515845863,-209.400456,0.0003593,7]
[358880632,1745515845874,-209.400456,0.0003593,7]
[358880633,1745515845884,-151.0,0.0003593,7]
[358880634,1745515845894,-151.0,0.0003593,7]
[358880635,1745515845904,-151.0,0.0003593,7]
[358880636,1745515845915,-151.0,0.0003593,7]
[358880637,1745515845926,-230.667596,0.0003593,7]
[358880638,1745515845935,-251.442534,0.0003593,7]
[358880639,1745515845945,-251.442534,0.0003593,7]
[358880640,1745515845955,-151.0,0.0003593,7]
[358880641,1745515845965,-355.733392,0.0003593,7]
[358880642,1745515845974,-355.733392,0.0003593,7]
[358880643,1745515845983,-268.508866,0.0003593,7]
[358880644,1745515845993,-390.917466,0.0003593,7]
[358880645,1745515846003,-390.917466,0.0003593,7]
[358880646,1745515846012,-151.0,0.0003593,7]
[358880647,1745515846022,-839.181028,0.0003593,2]
[358880648,1745515846033,-1024.156362,0.0003593,7]
[358880649,1745515846043,-839.181028,0.0003593,2]
[358880650,1745515846055,-1024.156362,0.0003593,7]
[358880651,1745515846065,-151.0,0.0003593,7]
[358880652,1745515846078,-151.0,0.0003593,7]
[358880653,1745515846087,-187.133543,0.0003593,7]
[358880654,1745515846096,-411.909564,0.0003593,7]
[358880656,1745515846107,-411.909564,0.0003593,7]
[358880658,1745515846116,-151.0,0.0003593,7]
[358880659,1745515846125,-151.0,0.0003593,7]
[358880660,1745515846134,-218.161542,0.0003593,7]
[358880662,1745515846145,-273.674149,0.0003593,7]
[358880663,1745515846158,-273.674149,0.0003593,7]
[358880665,1745515846167,-693.520204,0.0003593,7]
[358880666,1745515846177,-693.520204,0.0003593,7]
[358880667,1745515846186,-500.0,0.00036,30]
[358880668,1745515846195,-645.89970638,0.00036,2]
[358880669,1745515846204,-1178.12,0.00036,2]
[358880670,1745515846214,-151.0,0.00036,7]
[358880671,1745515846224,-151.0,0.00036,7]
[358880672,1745515846235,-294.049152,0.00036,7]
[358880673,1745515846247,-151.0,0.00036,7]
[358880674,1745515846257,-301.155705,0.00036,7]
[358880675,1745515846270,-164.992479,0.00036,7]
[358880676,1745515846279,-164.992479,0.00036,7]
[358880677,1745515846289,-501.86,0.00036,3]
[358880678,1745515846299,-151.0,0.00036,7]
[358880679,1745515846310,-283.091552,0.00036,7]
[358880680,1745515846319,-283.091552,0.00036,7]
[358880681,1745515846328,-500.0,0.00036,5]
[358880682,1745515846338,-151.0,0.00036027,7]
[358880683,1745515846349,-194.747237,0.00036027,7]
[358880684,1745515846359,-194.747237,0.00036027,7]
[358880685,1745515846368,-280.109296,0.00036027,7]
[358880686,1745515846379,-280.109296,0.00036027,7]
[358880687,1745515846389,-691.84,0.00036031,2]
[358880688,1745515846399,-273.830976,0.00036089,7]
[358880689,1745515846409,-633.837299,0.00036089,7]
[358880690,1745515846418,-633.837299,0.00036089,7]
[358880691,1745515846429,-261.074273,0.00036089,7]
[358880692,1745515846439,-261.074273,0.00036089,7]
[358880693,1745515846450,-194.637015,0.00036089,7]
[358880694,1745515846461,-194.637015,0.00036089,7]
[358880695,1745515846472,-511.316107,0.00036089,7]
[358880696,1745515846482,-511.316107,0.00036089,7]
[358880697,1745515846492,-151.0,0.00036089,7]
[358880698,1745515846502,-151.0,0.00036089,7]
[358880699,1745515846512,-151.0,0.00036089,7]
[358880700,1745515846523,-703.516116,0.00036089,7]
[358880701,1745515846532,-703.516116,0.00036089,7]
[358880702,1745515846542,-568.154562,0.00036089,7]
[358880703,1745515846551,-568.154562,0.00036089,7]
[358880704,1745515846562,-151.0,0.00036089,7]
[358880705,1745515846572,-151.0,0.00036089,7]
[358880706,1745515846581,-151.0,0.00036089,7]
[358880707,1745515846591,-151.0,0.00036089,7]
[358880708,1745515846600,-151.0,0.00036089,7]
[358880709,1745515846610,-151.0,0.00036089,7]
[358880710,1745515846621,-197.35,0.00036122,7]
[358880711,1745515846632,-210.49,0.00036122,7]
[358880712,1745515846642,-158.36,0.00036122,14]
[358880713,1745515846652,-308.64,0.00036122,7]
[358880714,1745515846662,-1315.94,0.00036139,30]
[358880715,1745515846673,-150.0,0.00036337,2]
[358880716,1745515846683,-150.0,0.00036369,2]
[358880717,1745515846694,-1000.0,0.00036479,5]